fUST/lending_fUST_20251129
["ID","MTS","AMOUNT","RATE_DAILY","PERIOD"]
[395046926,1764372657556,-500.0,0.00016986,2]
[395046927,1764372657565,-500.0,0.00016986,2]
[395046928,1764372657575,-500.0,0.00016986,2]
[395046929,1764372657583,-578.17,0.00016986,2]
[395046930,1764372657593,-581.76,0.00016986,2]
[395046931,1764372657602,-1345.53,0.00016986,2]
[395046932,1764372657611,-500.0,0.00016986,2]
[395046933,1764372657621,-774.86,0.00016986,2]
[395046934,1764372657630,-500.0,0.00016986,2]
[395046935,1764372657639,-1012.47,0.00016986,2]
[395046936,1764372657648,-500.0,0.00016986,2]
[395046937,1764372657658,-514.46,0.00016986,2]
[395046938,1764372657667,-500.0,0.00016986,2]
[395046939,1764372657677,-500.0,0.00016986,2]
[395046940,1764372657686,-904.73,0.00016986,2]
[395046941,1764372657695,-500.0,0.00016986,2]
[395046942,1764372657705,-500.0,0.00016986,2]
[395046943,1764372657714,-500.0,0.00016986,2]
[395046944,1764372657723,-536.95,0.00016986,2]
[395046945,1764372657734,-500.0,0.00016986,2]
[395046946,1764372657743,-513.22,0.00016986,2]
[395046947,1764372657753,-674.92,0.00016986,2]
[395046948,1764372657761,-500.0,0.00016986,2]
[395046949,1764372657771,-585.46611492,0.00016986,2]
[395046950,1764372657780,-1511.14,0.00016986,2]
[395046951,1764372657789,-500.0,0.00016986,2]
[395046952,1764372657798,-500.0,0.00016986,2]
[395046953,1764372657807,-500.0,0.00016986,2]
[395046954,1764372657816,-1283.06,0.00016986,2]
[395046955,1764372657826,-503.17,0.00016986,2]
[395046956,1764372657835,-500.0,0.00016986,2]
[395046957,1764372657844,-748.2,0.00016986,2]
[395046958,1764372657853,-1855.57,0.00016986,2]
[395046959,1764372657866,-737.99,0.00016986,2]
[395046960,1764372657875,-500.0,0.00016986,2]
[395046961,1764372657885,-500.0,0.00016986,2]
[395046962,1764372657894,-500.0,0.00016986,2]
[395046963,1764372657905,-500.0,0.00016986,2]
[395046964,1764372657915,-775.93,0.00016986,2]
[395046965,1764372657924,-500.0,0.00016986,2]
[395046966,1764372657935,-500.0,0.00016986,2]
[395046967,1764372657945,-664.85,0.00016986,2]
[395046968,1764372657955,-500.0,0.00016986,2]
[395046969,1764372657964,-1218.32,0.00016986,2]
[395046970,1764372657974,-500.0,0.00016986,2]
[395046971,1764372657983,-500.0,0.00016986,2]
[395046972,1764372657992,-500.0,0.00016986,2]
[395046973,1764372658001,-352.75455406,0.00016986,2]
[395046974,1764372658011,-500.0,0.00016986,2]
[395046975,1764372658020,-500.0,0.00016986,2]
[395046976,1764372658029,-500.0,0.00016986,2]
[395046977,1764372658038,-889.44,0.00016986,2]
[395046978,1764372658047,-1110.45,0.00016986,2]
[395046979,1764372658057,-500.0,0.00016986,2]
[395046980,1764372658066,-647.62,0.00016986,2]
[395046981,1764372658076,-2532.82,0.00016986,2]
[395046982,1764372658085,-500.0,0.00016986,2]
[395046983,1764372658094,-678.39,0.00016986,2]
[395046984,1764372658103,-500.0,0.00016986,2]
[395046985,1764372658112,-500.0,0.00016986,2]
[395046986,1764372658121,-500.0,0.00016986,2]
[395046987,1764372658131,-500.0,0.00016986,2]
[395046988,1764372658140,-500.0,0.00016986,2]
[395046989,1764372658149,-500.0,0.00016986,2]
[395046990,1764372658158,-500.0,0.00016986,2]
[395046991,1764372658167,-623.58,0.00016986,2]
[395046992,1764372658177,-559.34,0.00016986,2]
[395046993,1764372658186,-1961.98,0.00016986,2]
[395046994,1764372658195,-500.0,0.00016986,2]
[395046995,1764372658203,-500.0,0.00016986,2]
[395046996,1764372658212,-560.57,0.00016986,2]
[395046997,1764372658221,-500.0,0.00016986,2]
[395046998,1764372658231,-553.87,0.00016986,2]
[395046999,1764372658240,-500.0,0.00016986,2]
[395047000,1764372658249,-761.09,0.00016986,2]
[395047001,1764372658258,-595.11847419,0.00016986,2]
[395047002,1764372658267,-500.0,0.00016986,2]
[395047003,1764372658277,-500.0,0.00016986,2]
[395047004,1764372658287,-500.0,0.00016986,2]
[395047005,1764372658296,-584.54,0.00016986,2]
[395047006,1764372658305,-500.0,0.00016986,2]
[395047007,1764372658314,-752.81,0.00016986,2]
[395047008,1764372658324,-335.86393148,0.00016986,2]
[395047009,1764372658333,-500.0,0.00016986,2]
[395047010,1764372658343,-500.0,0.00016986,2]
[395047011,1764372658352,-979.71,0.00016986,2]
[395047012,1764372658361,-622.6397734,0.00016986,2]
[395047013,1764372658370,-500.0,0.00016986,2]
[395047014,1764372658379,-600.47,0.00016986,2]
[395047015,1764372658389,-551.36,0.00016986,2]
[395047016,1764372658398,-500.83,0.00016986,2]
[395047017,1764372658409,-500.0,0.00016986,2]
[395047018,1764372658418,-500.0,0.00016986,2]
[395047019,1764372658427,-500.0,0.00016986,2]
[395047020,1764372658437,-500.0,0.00016986,2]
[395047021,1764372658446,-805.91,0.00016986,2]
[395047022,1764372658456,-500.0,0.00016986,2]
[395047023,1764372658465,-727.16,0.00016986,2]
[395047024,1764372658474,-629.72554322,0.00016986,2]
[395047025,1764372658483,-967.6,0.00016986,2]
[395047026,1764372658493,-500.0,0.00016986,2]
[395047027,1764372658502,-500.0,0.00016986,2]
[395047028,1764372658512,-500.0,0.00016986,2]
[395047029,1764372658521,-812.08,0.00016986,2]
[395047030,1764372658531,-888.91,0.00016986,2]
[395047031,1764372658540,-500.0,0.00016986,2]
[395047032,1764372658549,-500.0,0.00016986,2]
[395047033,1764372658558,-500.0,0.00016986,2]
[395047034,1764372658568,-531.64,0.00016986,2]
[395047035,1764372658577,-500.0,0.00016986,2]
[395047036,1764372658586,-935.94,0.00016986,2]
[395047037,1764372658595,-500.0,0.00016986,2]
[395047038,1764372658605,-151.0,0.00016986,2]
[395047039,1764372658614,-500.0,0.00016986,2]
[395047040,1764372658623,-500.0,0.00016986,2]
[395047041,1764372658632,-877.57,0.00016986,2]
[395047042,1764372658641,-619.12,0.00016986,2]
[395047043,1764372658650,-1569.31,0.00016986,2]
[395047044,1764372658660,-500.0,0.00016986,2]
[395047045,1764372658669,-500.0,0.00016986,2]
[395047046,1764372658678,-926.99,0.00016986,2]
[395047047,1764372658687,-748.14,0.00016986,2]
[395047048,1764372658697,-500.0,0.00016986,2]
[395047049,1764372658706,-1391.34,0.00016986,2]
[395047050,1764372658716,-500.0,0.00016986,2]
[395047051,1764372658725,-500.0,0.00016986,2]
[395047052,1764372658733,-827.09,0.00016986,2]
[395047053,1764372658741,-2852.36,0.00016986,2]
[395047054,1764372658751,-1623.87,0.00016986,2]
[395047055,1764372658759,-500.0,0.00016986,2]
[395047056,1764372658768,-156.85619322,0.00016986,2]
[395047057,1764372658777,-653.82,0.00016986,2]
[395047058,1764372658787,-1970.71,0.00016986,2]
[395047059,1764372658796,-2847.39,0.00016986,2]
[395047060,1764372658805,-500.0,0.00016986,2]
[395047061,1764372658815,-500.0,0.00016986,2]
[395047062,1764372658824,-1845.23,0.00016986,2]
[395047063,1764372658833,-1583.3,0.00016986,2]
[395047064,1764372658842,-2878.0,0.00016986,2]
[395047065,1764372658852,-1427.64,0.00016986,2]
[395047066,1764372658864,-500.0,0.00016986,2]
[395047067,1764372658873,-947.36,0.00016986,2]
[395047068,1764372658883,-500.0,0.00016986,2]
[395047069,1764372658892,-169.546341,0.00016986,2]
[395047070,1764372658901,-664.96,0.00016986,2]
[395047071,1764372658911,-500.0,0.00016986,2]
[395047072,1764372658920,-500.0,0.00016986,2]
[395047073,1764372658930,-500.0,0.00016986,2]
[395047074,1764372658939,-1634.1,0.00016986,2]
[395047075,1764372658948,-500.0,0.00016986,2]
[395047076,1764372658958,-500.0,0.00016986,2]
[395047077,1764372658967,-500.0,0.00016986,2]
[395047078,1764372658976,-191.53643602,0.00016986,2]
[395047079,1764372658986,-914.62,0.00016986,2]
[395047080,1764372658996,-720.51,0.00016986,2]
[395047081,1764372659006,-2707.42,0.00016986,2]
[395047082,1764372659015,-500.0,0.00016986,2]
[395047083,1764372659024,-2750.36,0.00016986,2]
[395047084,1764372659033,-500.0,0.00016986,2]
[395047085,1764372659041,-500.41,0.00016986,2]
[395047086,1764372659051,-523.44,0.00016986,2]
[395047087,1764372659060,-500.0,0.00016986,2]
[395047088,1764372659069,-500.0,0.00016986,2]
[395047089,1764372659078,-1042.99,0.00016986,2]
[395047090,1764372659088,-645.02,0.00016986,2]
[395047091,1764372659097,-1245.52,0.00016986,2]
[395047092,1764372659106,-1853.47,0.00016986,2]
[395047093,1764372659116,-871.52,0.00016986,2]
[395047094,1764372659126,-500.0,0.00016986,2]
[395047095,1764372659136,-3430.29,0.00016986,2]
[395047096,1764372659145,-730.4,0.00016986,2]
[395047097,1764372659154,-574.26,0.00016986,2]
[395047098,1764372659164,-500.0,0.00016986,2]
[395047099,1764372659173,-500.0,0.00016986,2]
[395047100,1764372659182,-500.0,0.00016986,2]
[395047101,1764372659192,-500.0,0.00016986,2]
[395047102,1764372659202,-500.0,0.00016986,2]
[395047103,1764372659211,-3218.16,0.00016986,2]
[395047104,1764372659220,-4526.99,0.00016986,2]
[395047105,1764372659229,-500.0,0.00016986,2]
[395047106,1764372659239,-500.0,0.00016986,2]
[395047107,1764372659248,-500.0,0.00016986,2]
[395047108,1764372659257,-17227.77,0.00016986,2]
[395047109,1764372659267,-500.0,0.00016986,2]
[395047110,1764372659276,-616.58,0.00016986,2]
[395047111,1764372659285,-3739.05,0.00016986,2]
[395047112,1764372659294,-1046.43,0.00016986,2]
[395047113,1764372659303,-500.0,0.00016986,2]
[395047114,1764372659312,-500.0,0.00016986,2]
[395047115,1764372659321,-500.0,0.00016986,2]
[395047116,1764372659330,-500.0,0.00016986,2]
[395047117,1764372659339,-2184.6,0.00016986,2]
[395047118,1764372659348,-711.56,0.00016986,2]
[395047119,1764372659357,-1171.76,0.00016986,2]
[395047120,1764372659367,-727.45,0.00016986,2]
[395047121,1764372659376,-500.0,0.00016986,2]
[395047122,1764372659385,-500.0,0.00016986,2]
[395047123,1764372659394,-1037.69,0.00016986,2]
[395047124,1764372659403,-547.1,0.00016986,2]
[395047125,1764372659418,-500.0,0.00016986,2]
[395047126,1764372659427,-613.0,0.00016986,2]
[395047127,1764372659437,-1720.54,0.00016986,2]
[395047128,1764372659446,-500.0,0.00016986,2]
[395047129,1764372659463,-1980.65,0.00016986,2]
[395047130,1764372659473,-1023.19,0.00016986,2]
[395047131,1764372659483,-500.0,0.00016986,2]
[395047132,1764372659492,-500.0,0.00016986,2]
[395047133,1764372659502,-500.0,0.00016986,2]
[395047134,1764372659511,-641.61,0.00016986,2]
[395047135,1764372659520,-500.0,0.00016986,2]
[395047136,1764372659529,-500.0,0.00016986,2]
[395047137,1764372659538,-1319.83,0.00016986,2]
[395047138,1764372659548,-4241.92,0.00016986,2]
[395047139,1764372659557,-500.0,0.00016986,2]
[395047140,1764372659566,-529.06,0.00016986,2]
[395047141,1764372659575,-500.0,0.00016986,2]
[395047142,1764372659585,-500.0,0.00016986,2]
[395047143,1764372659594,-869.6,0.00016986,2]
[395047144,1764372659603,-7824.54,0.00016986,2]
[395047145,1764372659612,-500.0,0.00016986,2]
[395047146,1764372659621,-1352.28,0.00016986,2]
[395047147,1764372659631,-500.0,0.00016986,2]
[395047148,1764372659640,-3967.65,0.00016986,2]
[395047149,1764372659649,-700.5,0.00016986,2]
[395047150,1764372659658,-4443.57,0.00016986,2]
[395047151,1764372659667,-500.0,0.00016986,2]
[395047152,1764372659676,-500.0,0.00016986,2]
[395047153,1764372659685,-952.39,0.00016986,2]
[395047154,1764372659695,-500.0,0.00016986,2]
[395047155,1764372659704,-2399.87,0.00016986,2]
[395047156,1764372659713,-500.0,0.00016986,2]
[395047157,1764372659722,-500.0,0.00016986,2]
[395047158,1764372659731,-500.0,0.00016986,2]
[395047159,1764372659740,-500.0,0.00016986,2]
[395047160,1764372659749,-739.31,0.00016986,2]
[395047161,1764372659758,-500.0,0.00016986,2]
[395047162,1764372659767,-699.9,0.00016986,2]
[395047163,1764372659777,-500.0,0.00016986,2]
[395047164,1764372659787,-977.12,0.00016986,2]
[395047165,1764372659796,-631.83,0.00016986,2]
[395047166,1764372659805,-563.47,0.00016986,2]
[395047167,1764372659815,-2440.22,0.00016986,2]
[395047168,1764372659823,-1914.45,0.00016986,2]
[395047169,1764372659832,-500.0,0.00016986,2]
[395047170,1764372659842,-500.0,0.00016986,2]
[395047171,1764372659852,-972.65,0.00016986,2]
[395047172,1764372659865,-3043.8,0.00016986,2]
[395047173,1764372659874,-500.0,0.00016986,2]
[395047174,1764372659883,-593.89,0.00016986,2]
[395047175,1764372659892,-1510.04,0.00016986,2]
[395047176,1764372659903,-1101.92,0.00016986,2]
[395047177,1764372659912,-622.78,0.00016986,2]
[395047178,1764372659921,-3776.01,0.00016986,2]
[395047179,1764372659930,-609.93,0.00016986,2]
[395047180,1764372659940,-594.08,0.00016986,2]
[395047181,1764372659949,-500.0,0.00016986,2]
[395047182,1764372659958,-500.0,0.00016986,2]
[395047183,1764372659968,-500.0,0.00016986,2]
[395047184,1764372659978,-500.0,0.00016986,2]
[395047185,1764372659987,-789.87,0.00016986,2]
[395047186,1764372659997,-500.0,0.00016986,2]
[395047187,1764372660006,-538.45,0.00016986,2]
[395047188,1764372660016,-743.61,0.00016986,2]
[395047189,1764372660025,-1519.83,0.00016986,2]
[395047190,1764372660035,-500.0,0.00016986,2]
[395047191,1764372660044,-500.0,0.00016986,2]
[395047192,1764372660054,-648.6,0.00016986,2]
[395047193,1764372660063,-1080.24,0.00016986,2]
[395047194,1764372660073,-3113.95,0.00016986,2]
[395047195,1764372660082,-1011.32,0.00016986,2]
[395047196,1764372660091,-500.0,0.00016986,2]
[395047197,1764372660100,-1593.85,0.00016986,2]
[395047198,1764372660109,-1169.98,0.00016986,2]
[395047199,1764372660118,-689.09,0.00016986,2]
[395047200,1764372660127,-500.0,0.00016986,2]
[395047201,1764372660137,-3350.26,0.00016986,2]
[395047202,1764372660146,-3410.99,0.00016986,2]
[395047203,1764372660155,-10314.11,0.00016986,2]
[395047204,1764372660164,-3853.28,0.00016986,2]
[395047205,1764372660173,-500.0,0.00016986,2]
[395047206,1764372660182,-500.0,0.00016986,2]
[395047207,1764372660191,-500.0,0.00016986,2]
[395047208,1764372660201,-706.65,0.00016986,2]
[395047209,1764372660210,-500.0,0.00016986,2]
[395047210,1764372660220,-500.0,0.00016986,2]
[395047211,1764372660231,-500.0,0.00016986,2]
[395047212,1764372660241,-4235.14,0.00016986,2]
[395047213,1764372660250,-1077.53,0.00016986,2]
[395047214,1764372660260,-500.0,0.00016986,2]
[395047215,1764372660269,-2764.79,0.00016986,2]
[395047216,1764372660279,-9314.33,0.00016986,2]
[395047217,1764372660289,-500.0,0.00016986,2]
[395047218,1764372660299,-500.0,0.00016986,2]
[395047219,1764372660308,-500.0,0.00016986,2]
[395047220,1764372660318,-500.0,0.00016986,2]
[395047221,1764372660328,-500.0,0.00016986,2]
[395047222,1764372660338,-500.0,0.00016986,2]
[395047223,1764372660347,-500.0,0.00016986,2]
[395047224,1764372660356,-500.0,0.00016986,2]
[395047225,1764372660366,-992.45,0.00016986,2]
[395047226,1764372660375,-500.0,0.00016986,2]
[395047227,1764372660385,-500.0,0.00016986,2]
[395047228,1764372660395,-500.0,0.00016986,2]
[395047229,1764372660404,-500.0,0.00016986,2]
[395047230,1764372660414,-500.0,0.00016986,2]
[395047231,1764372660424,-711.68,0.00016986,2]
[395047232,1764372660434,-500.0,0.00016986,2]
[395047233,1764372660444,-2541.01,0.00016986,2]
[395047234,1764372660454,-934.11,0.00016986,2]
[395047235,1764372660464,-500.0,0.00016986,2]
[395047236,1764372660474,-500.0,0.00016986,2]
[395047237,1764372660483,-500.0,0.00016986,2]
[395047238,1764372660492,-523.08323748,0.00016986,2]
[395047239,1764372660502,-1176.61,0.00016986,2]
[395047240,1764372660511,-500.0,0.00016986,2]
[395047241,1764372660522,-1040.87389778,0.00017,2]
[395047242,1764372660532,-500.0,0.00017,2]
[395047243,1764372660541,-353.59244258,0.00017,7]
[395047244,1764372660551,-1000.0,0.00017021,2]
[395047245,1764372660561,-1000.0,0.00017021,2]
[395047246,1764372660571,-1000.0,0.00017021,2]
[395047247,1764372660580,-1000.0,0.00017021,2]
[395047248,1764372660590,-1000.0,0.00017021,2]
[395047249,1764372660600,-1116.60669535,0.00017021,2]
[395047250,1764372660609,-1000.0,0.00017021,2]
[395047251,1764372660619,-201.11531663,0.00017021,2]
[395047252,1764372660629,-1000.0,0.00017021,2]
[395047253,1764372660638,-1000.0,0.00017021,2]
[395047254,1764372660648,-1000.0,0.00017021,2]
[395047255,1764372660658,-1000.0,0.00017021,2]
[395047256,1764372660669,-1000.0,0.00017021,2]
[395047257,1764372660679,-1000.0,0.00017021,2]
[395047258,1764372660688,-1000.0,0.00017021,2]
[395047259,1764372660698,-1000.0,0.00017021,2]
[395047260,1764372660713,-1000.0,0.00017021,2]
[395047261,1764372660723,-1000.0,0.00017021,2]
[395047262,1764372660733,-1000.0,0.00017021,2]
[395047263,1764372660742,-1000.0,0.00017021,2]
[395047264,1764372660752,-1000.0,0.00017021,2]
[395047265,1764372660762,-1000.0,0.00017021,2]
[395047266,1764372660772,-1000.0,0.00017021,2]
[395047267,1764372660783,-1000.0,0.00017021,2]
[395047268,1764372660793,-1000.0,0.00017021,2]
[395047269,1764372660802,-1015.04642198,0.00017021,2]
[395047270,1764372660812,-1000.0,0.00017021,2]
[395047271,1764372660822,-1000.0,0.00017021,2]
[395047272,1764372660832,-1000.0,0.00017021,2]
[395047273,1764372660842,-1000.0,0.00017021,2]
[395047274,1764372660852,-1000.0,0.00017021,2]
[395047275,1764372660866,-1000.0,0.00017021,2]
[395047276,1764372660876,-1000.0,0.00017021,2]
[395047277,1764372660886,-1000.0,0.00017021,2]
[395047278,1764372660896,-1000.0,0.00017021,2]
[395047279,1764372660906,-1000.0,0.00017021,2]
[395047280,1764372660916,-1000.0,0.00017021,2]
[395047281,1764372660926,-1000.0,0.00017021,2]
[395047282,1764372660936,-170.00848032,0.00017021,2]
[395047283,1764372660946,-1000.0,0.00017021,2]
[395047284,1764372660956,-1000.0,0.00017021,2]
[395047285,1764372660966,-1000.0,0.00017021,2]
[395047286,1764372660976,-1000.0,0.00017021,2]
[395047287,1764372660985,-175.29872286,0.00017021,2]
[395047288,1764372660996,-1000.0,0.00017021,2]
[395047289,1764372661005,-530.48429648,0.00017021,2]
[395047290,1764372661016,-1000.0,0.00017021,2]
[395047291,1764372661026,-496.19505642,0.00017021,2]
[395047292,1764372661035,-1000.0,0.00017021,2]
[395047293,1764372661045,-1000.0,0.00017021,2]
[395047294,1764372661055,-1000.0,0.00017021,2]
[395047295,1764372661065,-337.95372165,0.00017021,2]
[395047296,1764372661075,-160.0,0.00017037,6]
[395047297,1764372661085,-500.0,0.00017047,2]
[395047298,1764372661095,-666.0,0.00017114,2]
[395047299,1764372661104,-160.0,0.00017137,3]
[395047300,1764372661113,-242.15909246,0.00017175,2]
[395047301,1764372661123,-178.0,0.00017195,2]
[395047302,1764372661133,-500.0,0.00017226,2]
[395047303,1764372661142,-178.0,0.00017226,2]
[395047304,1764372661152,-500.0,0.0001726,2]
[395047305,1764372661161,-500.0,0.0001726,2]
[395047306,1764372661172,-759.29,0.0001726,2]
[395047307,1764372661182,-500.0,0.0001726,2]
[395047308,1764372661192,-500.0,0.0001726,2]
[395047309,1764372661205,-528.19,0.0001726,2]
[395047310,1764372661215,-500.0,0.0001726,2]
[395047311,1764372661225,-500.0,0.0001726,2]
[395047312,1764372661235,-500.0,0.0001726,2]
[395047313,1764372661246,-668.24,0.0001726,2]
[395047314,1764372661256,-676.39,0.0001726,2]
[395047315,1764372661266,-500.0,0.0001726,2]
[395047316,1764372661276,-500.0,0.0001726,2]
[395047317,1764372661286,-500.0,0.0001726,2]
[395047318,1764372661296,-500.0,0.0001726,2]
[395047319,1764372661306,-500.0,0.0001726,2]
[395047320,1764372661316,-588.95,0.0001726,2]
[395047321,1764372661326,-516.98,0.0001726,2]
[395047322,1764372661337,-500.0,0.0001726,2]
[395047323,1764372661346,-500.0,0.0001726,2]
[395047324,1764372661356,-500.0,0.0001726,2]
[395047325,1764372661366,-500.0,0.0001726,2]
[395047326,1764372661376,-500.0,0.0001726,2]
[395047327,1764372661386,-500.0,0.0001726,2]
[395047328,1764372661397,-500.0,0.0001726,2]
[395047329,1764372661407,-500.0,0.0001726,2]
[395047330,1764372661417,-500.0,0.0001726,2]
[395047331,1764372661427,-500.0,0.0001726,2]
[395047332,1764372661438,-500.0,0.0001726,2]
[395047333,1764372661448,-590.98,0.0001726,2]
[395047334,1764372661458,-1600.44,0.0001726,2]
[395047335,1764372661468,-500.0,0.0001726,2]
[395047336,1764372661478,-500.0,0.0001726,2]
[395047337,1764372661489,-500.0,0.0001726,2]
[395047338,1764372661499,-500.0,0.0001726,2]
[395047339,1764372661509,-1149.74,0.0001726,2]
[395047340,1764372661521,-535.42,0.0001726,2]
[395047341,1764372661533,-564.74,0.0001726,2]
[395047342,1764372661543,-789.99,0.0001726,2]
[395047343,1764372661554,-500.0,0.0001726,2]
[395047344,1764372661564,-500.0,0.0001726,2]
[395047345,1764372661573,-1749.39,0.0001726,2]
[395047346,1764372661583,-877.58,0.0001726,2]
[395047347,1764372661592,-500.0,0.0001726,2]
[395047348,1764372661602,-1045.4,0.0001726,2]
[395047349,1764372661612,-500.0,0.0001726,2]
[395047350,1764372661622,-500.0,0.0001726,2]
[395047351,1764372661632,-1078.66,0.0001726,2]
[395047352,1764372661642,-500.0,0.0001726,2]
[395047353,1764372661652,-500.0,0.0001726,2]
[395047354,1764372661662,-619.42,0.0001726,2]
[395047355,1764372661672,-500.0,0.0001726,2]
[395047356,1764372661682,-500.0,0.0001726,2]
[395047357,1764372661692,-500.0,0.0001726,2]
[395047358,1764372661702,-500.0,0.0001726,2]
[395047359,1764372661712,-500.0,0.0001726,2]
[395047360,1764372661722,-500.0,0.0001726,2]
[395047361,1764372661733,-500.0,0.0001726,2]
[395047362,1764372661742,-1626.71,0.0001726,2]
[395047363,1764372661752,-500.0,0.0001726,2]
[395047364,1764372661762,-500.0,0.0001726,2]
[395047365,1764372661772,-982.61,0.0001726,2]
[395047366,1764372661782,-702.81,0.0001726,2]
[395047367,1764372661791,-895.19,0.0001726,2]
[395047368,1764372661801,-500.0,0.0001726,2]
[395047369,1764372661811,-500.0,0.0001726,2]
[395047370,1764372661821,-500.0,0.0001726,2]
[395047371,1764372661831,-786.71,0.0001726,2]
[395047372,1764372661841,-557.46,0.0001726,2]
[395047373,1764372661851,-625.18,0.0001726,2]
[395047374,1764372661864,-500.0,0.0001726,2]
[395047375,1764372661874,-662.94,0.0001726,2]
[395047376,1764372661885,-781.26,0.0001726,2]
[395047377,1764372661894,-506.83,0.0001726,2]
[395047378,1764372661906,-500.0,0.0001726,2]
[395047379,1764372661915,-500.0,0.0001726,2]
[395047380,1764372661926,-500.0,0.0001726,2]
[395047381,1764372661938,-578.17,0.0001726,2]
[395047382,1764372661948,-1345.53,0.0001726,2]
[395047383,1764372661958,-581.76,0.0001726,2]
[395047384,1764372661968,-500.0,0.0001726,2]
[395047385,1764372661978,-774.86,0.0001726,2]
[395047386,1764372661988,-500.0,0.0001726,2]
[395047387,1764372661998,-1012.47,0.0001726,2]
[395047388,1764372662008,-500.0,0.0001726,2]
[395047389,1764372662018,-514.46,0.0001726,2]
[395047390,1764372662028,-500.0,0.0001726,2]
[395047391,1764372662037,-500.0,0.0001726,2]
[395047392,1764372662047,-904.73,0.0001726,2]
[395047393,1764372662057,-500.0,0.0001726,2]
[395047394,1764372662067,-500.0,0.0001726,2]
[395047395,1764372662077,-500.0,0.0001726,2]
[395047396,1764372662086,-536.95,0.0001726,2]
[395047397,1764372662097,-500.0,0.0001726,2]
[395047398,1764372662106,-513.22,0.0001726,2]
[395047399,1764372662116,-674.92,0.0001726,2]
[395047400,1764372662126,-500.0,0.0001726,2]
[395047401,1764372662136,-1511.14,0.0001726,2]
[395047402,1764372662146,-500.0,0.0001726,2]
[395047403,1764372662155,-500.0,0.0001726,2]
[395047404,1764372662165,-500.0,0.0001726,2]
[395047405,1764372662174,-1283.06,0.0001726,2]
[395047406,1764372662184,-503.17,0.0001726,2]
[395047407,1764372662194,-500.0,0.0001726,2]
[395047408,1764372662204,-748.2,0.0001726,2]
[395047409,1764372662214,-1855.57,0.0001726,2]
[395047410,1764372662224,-737.99,0.0001726,2]
[395047411,1764372662233,-500.0,0.0001726,2]
[395047412,1764372662243,-500.0,0.0001726,2]
[395047413,1764372662253,-500.0,0.0001726,2]
[395047414,1764372662262,-500.0,0.0001726,2]
[395047415,1764372662272,-775.93,0.0001726,2]
[395047416,1764372662282,-500.0,0.0001726,2]
[395047417,1764372662291,-500.0,0.0001726,2]
[395047418,1764372662301,-664.85,0.0001726,2]
[395047419,1764372662310,-500.0,0.0001726,2]
[395047420,1764372662320,-1218.32,0.0001726,2]
[395047421,1764372662329,-500.0,0.0001726,2]
[395047422,1764372662338,-195.45583425,0.0001726,2]
[395047423,1764372662348,-500.0,0.0001726,2]
[395047424,1764372662357,-500.0,0.0001726,2]
[395047425,1764372662367,-500.0,0.0001726,2]